[Event "Championnat d'Europe Rapide"]
[Date "2024.12.08"]
[White "Livaic, Leon"]
[Black "Jobava, Baadur"]
[WhiteElo "2560"]
[BlackElo "2578"]
[Round "10.4"]
[Result "0-1"]
[TimeControl "900+10"]

1. e4 {[%emt 00:00:01] [%clk 00:15:16]} d6 {[%emt 00:00:23] [%clk 00:14:57]} 2.
d4 {[%emt 00:00:03] [%clk 00:15:23]} Nf6 {[%emt 00:00:01] [%clk 00:15:06]} 3.
Nc3 {[%emt 00:00:05] [%clk 00:15:28]} e5 {[%emt 00:00:01] [%clk 00:15:15]} 4.
Nf3 {[%emt 00:00:32] [%clk 00:15:07]} Nbd7 {[%emt 00:00:02] [%clk 00:15:23]} 5.
Bc4 {[%emt 00:00:47] [%clk 00:14:29]} Be7 {[%emt 00:00:03] [%clk 00:15:31]} 6.
O-O {[%emt 00:00:02] [%clk 00:14:36]} O-O {[%emt 00:00:02] [%clk 00:15:39]} 7.
a4 {[%emt 00:00:04] [%clk 00:14:43]} c6 {[%emt 00:00:02] [%clk 00:15:47]} 8. Re1
{[%emt 00:00:04] [%clk 00:14:48]} h6 {[%emt 00:00:02] [%clk 00:15:56]} 9. h3
{[%emt 00:00:10] [%clk 00:14:48]} Re8 {[%emt 00:00:02] [%clk 00:16:03]} 10. a5
{[%emt 00:00:16] [%clk 00:14:42]} Bf8 {[%emt 00:00:31] [%clk 00:15:42]} 11. Be3
{[%emt 00:00:52] [%clk 00:14:01]} exd4 {[%emt 00:00:42] [%clk 00:15:10]} 12.
Bxd4 {[%emt 00:00:02] [%clk 00:14:08]} Qc7 {[%emt 00:00:06] [%clk 00:15:14]} 13.
Ba2 {[%emt 00:00:20] [%clk 00:13:58]} Ne5 {[%emt 00:00:16] [%clk 00:15:08]} 14.
Nd2 {[%emt 00:00:20] [%clk 00:13:48]} Be6 {[%emt 00:00:27] [%clk 00:14:52]} 15.
Bxe6 {[%emt 00:00:51] [%clk 00:13:07]} Rxe6 {[%emt 00:00:02] [%clk 00:15:00]}
16. f4 {[%emt 00:00:19] [%clk 00:12:58]} Ned7 {[%emt 00:00:01] [%clk 00:15:08]}
17. Qf3 {[%emt 00:00:27] [%clk 00:12:41]} Ree8 {[%emt 00:00:58] [%clk 00:14:20]}
18. Bf2 {[%emt 00:01:36] [%clk 00:11:15]} b5 {[%emt 00:00:20] [%clk 00:14:11]}
19. axb6 {[%emt 00:00:03] [%clk 00:11:22]} axb6 {[%emt 00:00:01] [%clk
00:14:19]} 20. Ne2 {[%emt 00:01:16] [%clk 00:10:16]} Rxa1 {[%emt 00:01:31] [%clk
00:12:58]} 21. Rxa1 {[%emt 00:00:01] [%clk 00:10:25]} Qb7 {[%emt 00:00:01] [%clk
00:13:07]} 22. Nc3 {[%emt 00:01:31] [%clk 00:09:03]} b5 {[%emt 00:00:42] [%clk
00:12:36]} 23. Qd3 {[%emt 00:01:37] [%clk 00:07:35]} Nc5 {[%emt 00:02:02] [%clk
00:10:45]} 24. Bxc5 {[%emt 00:00:07] [%clk 00:07:38]} dxc5 {[%emt 00:00:01]
[%clk 00:10:53]} 25. e5 {[%emt 00:00:49] [%clk 00:06:58]} Nd5 {[%emt 00:00:15]
[%clk 00:10:48]} 26. Nxd5 {[%emt 00:01:47] [%clk 00:05:22]} cxd5 {[%emt
00:00:02] [%clk 00:10:55]} 27. Nf3 {[%emt 00:00:04] [%clk 00:05:29]} d4 {[%emt
00:01:22] [%clk 00:09:42]} 28. b4 {[%emt 00:01:20] [%clk 00:04:19]} cxb4 {[%emt
00:00:22] [%clk 00:09:31]} 29. Qxd4 {[%emt 00:01:05] [%clk 00:03:25]} Rc8 {[%emt
00:00:25] [%clk 00:09:15]} 30. Qd3 {[%emt 00:00:26] [%clk 00:03:09]} Qb6+ {[%emt
00:00:27] [%clk 00:08:58]} 31. Kh1 {[%emt 00:00:16] [%clk 00:03:03]} Qf2 {[%emt
00:00:12] [%clk 00:08:56]} 32. e6 {[%emt 00:00:54] [%clk 00:02:19]} fxe6 {[%emt
00:00:02] [%clk 00:09:05]} 33. Qd7 {[%emt 00:00:07] [%clk 00:02:22]} Qxc2 {[%emt
00:02:19] [%clk 00:06:56]} 34. Qxe6+ {[%emt 00:00:01] [%clk 00:02:30]} Kh7
{[%emt 00:00:01] [%clk 00:07:05]} 35. Ne5 {[%emt 00:01:32] [%clk 00:01:09]} Rd8
{[%emt 00:00:11] [%clk 00:07:04]} 36. f5 {[%emt 00:00:23] [%clk 00:00:56]} Rd6
{[%emt 00:00:03] [%clk 00:07:11]} 37. Qf7 {[%emt 00:00:11] [%clk 00:00:54]} Rf6
{[%emt 00:00:02] [%clk 00:07:20]} 38. Qe8 {[%emt 00:00:28] [%clk 00:00:36]} Qe2
{[%emt 00:00:41] [%clk 00:06:48]} 39. Ra8 {[%emt 00:00:28] [%clk 00:00:19]} b3
{[%emt 00:01:01] [%clk 00:05:57]} 0-1

[Site "Europe Echecs"]

[Event "Championnat d'Europe Rapide"]
[Date "2024.12.08"]
[White "Mohr, Georg"]
[Black "Sargissian, Gabriel"]
[WhiteElo "2385"]
[BlackElo "2628"]
[Round "10.5"]
[Result "0-1"]
[TimeControl "900+10"]

1. d4 {[%emt 00:00:05] [%clk 00:15:15]} Nf6 {[%emt 00:00:10] [%clk 00:15:10]} 2.
Nf3 {[%emt 00:00:02] [%clk 00:15:23]} d5 {[%emt 00:00:05] [%clk 00:15:15]} 3. e3
{[%emt 00:00:04] [%clk 00:15:29]} e6 {[%emt 00:00:08] [%clk 00:15:17]} 4. Bd3
{[%emt 00:00:03] [%clk 00:15:36]} b6 {[%emt 00:00:33] [%clk 00:14:54]} 5. Nbd2
{[%emt 00:01:10] [%clk 00:14:36]} Bb7 {[%emt 00:00:54] [%clk 00:14:10]} 6. Qe2
{[%emt 00:00:07] [%clk 00:14:39]} Nbd7 {[%emt 00:00:34] [%clk 00:13:47]} 7. e4
{[%emt 00:00:04] [%clk 00:14:44]} dxe4 {[%emt 00:00:06] [%clk 00:13:52]} 8. Nxe4
{[%emt 00:00:01] [%clk 00:14:53]} Nxe4 {[%emt 00:01:24] [%clk 00:12:37]} 9. Bxe4
{[%emt 00:00:01] [%clk 00:15:02]} Bxe4 {[%emt 00:00:02] [%clk 00:12:46]} 10.
Qxe4 {[%emt 00:00:01] [%clk 00:15:11]} Be7 {[%emt 00:00:02] [%clk 00:12:53]} 11.
O-O {[%emt 00:00:26] [%clk 00:14:54]} O-O {[%emt 00:00:08] [%clk 00:12:56]} 12.
Bf4 {[%emt 00:00:07] [%clk 00:14:57]} Nf6 {[%emt 00:00:06] [%clk 00:13:00]} 13.
Qe2 {[%clk 00:15:06]} Bd6 {[%emt 00:02:07] [%clk 00:11:03]} 14. Be5 {[%emt
00:01:12] [%clk 00:14:03]} Nd7 {[%emt 00:00:49] [%clk 00:10:25]} 15. Rad1 {[%emt
00:00:16] [%clk 00:13:56]} Qe7 {[%emt 00:00:21] [%clk 00:10:14]} 16. Rd3 {[%emt
00:01:15] [%clk 00:12:52]} Rfe8 {[%emt 00:00:22] [%clk 00:10:03]} 17. Rfd1
{[%emt 00:00:10] [%clk 00:12:51]} b5 {[%emt 00:00:21] [%clk 00:09:52]} 18. Bg3
{[%emt 00:00:13] [%clk 00:12:47]} Nb6 {[%emt 00:00:42] [%clk 00:09:22]} 19. Bh4
{[%emt 00:01:00] [%clk 00:11:56]} Qf8 {[%emt 00:00:12] [%clk 00:09:21]} 20. Ne5
{[%emt 00:00:04] [%clk 00:12:01]} f6 {[%emt 00:00:50] [%clk 00:08:41]} 21. Nf3
{[%emt 00:00:37] [%clk 00:11:34]} Nd5 {[%emt 00:00:04] [%clk 00:08:47]} 22. Bg3
{[%emt 00:00:02] [%clk 00:11:42]} a6 {[%emt 00:00:14] [%clk 00:08:44]} 23. c3
{[%emt 00:00:07] [%clk 00:11:44]} Qf7 {[%emt 00:00:17] [%clk 00:08:37]} 24. Nd2
{[%emt 00:00:32] [%clk 00:11:22]} Bf8 {[%emt 00:00:08] [%clk 00:08:39]} 25. Nf1
{[%emt 00:00:34] [%clk 00:10:57]} Rad8 {[%emt 00:00:09] [%clk 00:08:41]} 26. Ne3
{[%emt 00:00:03] [%clk 00:11:04]} c6 {[%emt 00:00:13] [%clk 00:08:38]} 27. Qc2
{[%emt 00:00:32] [%clk 00:10:41]} Qg6 {[%emt 00:00:30] [%clk 00:08:19]} 28. Qd2
{[%emt 00:00:14] [%clk 00:10:37]} h5 {[%emt 00:00:41] [%clk 00:07:48]} 29. h3
{[%emt 00:00:17] [%clk 00:10:30]} Bd6 {[%emt 00:00:51] [%clk 00:07:08]} 30. Bxd6
{[%emt 00:00:20] [%clk 00:10:20]} Rxd6 {[%emt 00:00:02] [%clk 00:07:16]} 31.
Nxd5 {[%emt 00:00:01] [%clk 00:10:28]} exd5 {[%emt 00:00:23] [%clk 00:07:03]}
32. Re3 {[%emt 00:00:07] [%clk 00:10:31]} Rde6 {[%emt 00:00:23] [%clk 00:06:50]}
33. Rxe6 {[%emt 00:00:20] [%clk 00:10:21]} Rxe6 {[%emt 00:00:02] [%clk
00:06:59]} 34. Re1 {[%clk 00:10:28]} Rxe1+ {[%emt 00:00:37] [%clk 00:06:35]} 35.
Qxe1 {[%clk 00:10:37]} Kf7 {[%emt 00:00:02] [%clk 00:06:43]} 36. Qe2 {[%emt
00:01:30] [%clk 00:09:15]} Qf5 {[%emt 00:00:11] [%clk 00:06:44]} 37. a3 {[%emt
00:00:17] [%clk 00:09:09]} h4 {[%emt 00:00:41] [%clk 00:06:13]} 38. Qg4 {[%emt
00:01:05] [%clk 00:08:14]} Qxg4 {[%emt 00:00:14] [%clk 00:06:09]} 39. hxg4
{[%clk 00:08:23]} f5 {[%emt 00:01:36] [%clk 00:04:44]} 40. gxf5 {[%emt 00:00:29]
[%clk 00:08:03]} Kf6 {[%emt 00:00:02] [%clk 00:04:52]} 41. Kh2 {[%emt 00:00:13]
[%clk 00:07:59]} Kxf5 {[%emt 00:00:03] [%clk 00:05:00]} 42. Kh3 {[%emt 00:00:02]
[%clk 00:08:07]} Kg5 {[%emt 00:02:24] [%clk 00:02:46]} 43. g3 {[%emt 00:00:33]
[%clk 00:07:44]} hxg3 {[%emt 00:00:06] [%clk 00:02:50]} 44. Kxg3 {[%emt
00:00:17] [%clk 00:07:36]} a5 {[%emt 00:00:17] [%clk 00:02:45]} 45. b4 {[%emt
00:00:40] [%clk 00:07:06]} a4 {[%emt 00:00:16] [%clk 00:02:38]} 46. f3 {[%emt
00:01:29] [%clk 00:05:47]} Kf5 {[%emt 00:00:04] [%clk 00:02:44]} 47. Kg2 {[%emt
00:01:05] [%clk 00:04:50]} Kf4 {[%emt 00:00:31] [%clk 00:02:25]} 48. Kf2 {[%emt
00:00:02] [%clk 00:04:57]} g6 {[%emt 00:01:41] [%clk 00:00:55]} 49. Ke2 {[%emt
00:01:51] [%clk 00:03:16]} Kg3 {[%emt 00:00:03] [%clk 00:01:03]} 50. Ke3 {[%emt
00:00:14] [%clk 00:03:11]} g5 {[%emt 00:00:20] [%clk 00:00:53]} 51. Ke2 {[%emt
00:00:22] [%clk 00:02:58]} Kg2 {[%emt 00:00:05] [%clk 00:00:59]} 52. Ke3 {[%emt
00:00:01] [%clk 00:03:07]} Kf1 {[%emt 00:00:08] [%clk 00:01:02]} 0-1

[Site "Europe Echecs"]

[Event "Championnat d'Europe Rapide"]
[Date "2024.12.08"]
[White "Kazakouski, Valery"]
[Black "Georgiev, Kiril"]
[WhiteElo "2567"]
[BlackElo "2537"]
[Round "10.6"]
[Result "1/2-1/2"]
[TimeControl "900+10"]

1. e4 {[%emt 00:00:32] [%clk 00:14:48]} e5 {[%emt 00:00:36] [%clk 00:14:44]} 2.
Nf3 {[%emt 00:00:03] [%clk 00:14:56]} Nc6 {[%emt 00:00:01] [%clk 00:14:52]} 3.
Bc4 {[%emt 00:00:02] [%clk 00:15:04]} Bc5 {[%emt 00:00:14] [%clk 00:14:47]} 4.
c3 {[%emt 00:00:03] [%clk 00:15:13]} Nf6 {[%emt 00:00:37] [%clk 00:14:20]} 5. d3
{[%emt 00:00:06] [%clk 00:15:17]} h6 {[%emt 00:00:08] [%clk 00:14:22]} 6. O-O
{[%emt 00:00:05] [%clk 00:15:21]} d6 {[%emt 00:00:11] [%clk 00:14:22]} 7. a4
{[%emt 00:00:14] [%clk 00:15:17]} a5 {[%emt 00:00:08] [%clk 00:14:24]} 8. Nbd2
{[%emt 00:00:07] [%clk 00:15:19]} O-O {[%emt 00:00:18] [%clk 00:14:16]} 9. h3
{[%emt 00:00:05] [%clk 00:15:24]} Ne7 {[%emt 00:00:51] [%clk 00:13:35]} 10. Re1
{[%emt 00:00:19] [%clk 00:15:16]} Ng6 {[%emt 00:00:04] [%clk 00:13:40]} 11. Nf1
{[%emt 00:00:03] [%clk 00:15:24]} c6 {[%emt 00:00:11] [%clk 00:13:39]} 12. Bb3
{[%emt 00:00:42] [%clk 00:14:51]} Bb6 {[%emt 00:00:46] [%clk 00:13:02]} 13. Ng3
{[%emt 00:00:27] [%clk 00:14:36]} d5 {[%emt 00:00:52] [%clk 00:12:19]} 14. Be3
{[%emt 00:01:53] [%clk 00:12:53]} Bc7 {[%emt 00:00:47] [%clk 00:11:42]} 15. Bc2
{[%emt 00:00:32] [%clk 00:12:32]} Re8 {[%emt 00:00:40] [%clk 00:11:11]} 16. Qb1
{[%emt 00:01:51] [%clk 00:10:52]} Be6 {[%emt 00:01:37] [%clk 00:09:43]} 17. b4
{[%emt 00:01:44] [%clk 00:09:18]} Qc8 {[%emt 00:01:16] [%clk 00:08:37]} 18. b5
{[%emt 00:01:16] [%clk 00:08:13]} dxe4 {[%emt 00:02:00] [%clk 00:06:46]} 19.
dxe4 {[%emt 00:01:15] [%clk 00:07:08]} cxb5 {[%emt 00:01:19] [%clk 00:05:38]}
20. Qxb5 {[%emt 00:00:18] [%clk 00:07:00]} Nf4 {[%emt 00:00:22] [%clk 00:05:25]}
21. Bb3 {[%emt 00:01:44] [%clk 00:05:27]} Ra6 {[%emt 00:00:55] [%clk 00:04:39]}
22. Bxe6 {[%emt 00:00:08] [%clk 00:05:29]} Raxe6 {[%emt 00:00:06] [%clk
00:04:44]} 23. Rab1 {[%emt 00:00:06] [%clk 00:05:34]} b6 {[%emt 00:00:06] [%clk
00:04:47]} 24. Red1 {[%emt 00:00:06] [%clk 00:05:38]} Qa8 {[%emt 00:00:08] [%clk
00:04:48]} 25. Nd2 {[%emt 00:00:35] [%clk 00:05:14]} Rc8 {[%emt 00:00:58] [%clk
00:04:00]} 26. Rbc1 {[%emt 00:01:23] [%clk 00:04:00]} g6 {[%emt 00:00:44] [%clk
00:03:26]} 27. c4 {[%emt 00:00:14] [%clk 00:03:57]} h5 {[%emt 00:00:16] [%clk
00:03:19]} 28. c5 {[%emt 00:01:44] [%clk 00:02:23]} h4 {[%emt 00:01:27] [%clk
00:02:02]} 29. cxb6 {[%emt 00:00:28] [%clk 00:02:06]} Bxb6 {[%emt 00:00:05]
[%clk 00:02:06]} 30. Rxc8+ {[%emt 00:00:28] [%clk 00:01:49]} Qxc8 {[%emt
00:00:02] [%clk 00:02:14]} 31. Bxb6 {[%emt 00:00:02] [%clk 00:01:56]} hxg3
{[%emt 00:00:38] [%clk 00:01:46]} 32. fxg3 {[%emt 00:00:07] [%clk 00:02:00]} Qc2
{[%emt 00:00:46] [%clk 00:01:09]} 33. Qb1 {[%emt 00:00:54] [%clk 00:01:17]} Ne2+
{[%emt 00:00:08] [%clk 00:01:11]} 34. Kf2 {[%emt 00:00:50] [%clk 00:00:37]} Qxb1
{[%emt 00:00:22] [%clk 00:00:59]} 35. Rxb1 {[%clk 00:00:46]} Nc3 {[%emt
00:00:03] [%clk 00:01:05]} 36. Rb3 {[%emt 00:00:01] [%clk 00:00:55]} Nxa4 {[%emt
00:00:26] [%clk 00:00:49]} 37. Bxa5 {[%emt 00:00:12] [%clk 00:00:54]} Nc5 {[%emt
00:00:02] [%clk 00:00:56]} 38. Re3 {[%emt 00:00:17] [%clk 00:00:47]} Ra6 {[%emt
00:00:16] [%clk 00:00:51]} 39. Bb4 {[%emt 00:00:15] [%clk 00:00:42]} Ra2 {[%emt
00:00:15] [%clk 00:00:46]} 40. Bxc5 {[%emt 00:00:22] [%clk 00:00:30]} Rxd2+
{[%emt 00:00:01] [%clk 00:00:54]} 41. Kf3 {[%emt 00:00:13] [%clk 00:00:27]} Nd7
{[%emt 00:00:25] [%clk 00:00:39]} 42. Bb4 {[%emt 00:00:05] [%clk 00:00:33]} Rc2
{[%emt 00:00:04] [%clk 00:00:44]} 43. Rd3 {[%emt 00:00:07] [%clk 00:00:36]} Rc7
{[%emt 00:00:05] [%clk 00:00:50]} 44. Bd6 {[%emt 00:00:04] [%clk 00:00:42]} Rb7
{[%emt 00:00:02] [%clk 00:00:58]} 45. g4 {[%emt 00:00:01] [%clk 00:00:51]} f6
{[%emt 00:00:01] [%clk 00:01:07]} 46. g5 {[%emt 00:00:14] [%clk 00:00:47]} fxg5
{[%emt 00:00:02] [%clk 00:01:15]} 47. Kg4 {[%emt 00:00:02] [%clk 00:00:55]} Nf6+
{[%emt 00:00:15] [%clk 00:01:10]} 48. Kf3 {[%emt 00:00:26] [%clk 00:00:39]} Rb5
{[%emt 00:00:07] [%clk 00:01:13]} 49. Be7 {[%emt 00:00:07] [%clk 00:00:41]} Kf7
{[%emt 00:00:18] [%clk 00:01:06]} 50. Bxf6 {[%emt 00:00:08] [%clk 00:00:43]}
Kxf6 {[%emt 00:00:03] [%clk 00:01:13]} 51. Rd6+ {[%emt 00:00:02] [%clk
00:00:51]} Kg7 {[%emt 00:00:09] [%clk 00:01:14]} 52. Kg4 {[%emt 00:00:10] [%clk
00:00:50]} Kh6 {[%emt 00:00:27] [%clk 00:00:58]} 53. Rd5 {[%emt 00:00:06] [%clk
00:00:54]} Rb2 {[%emt 00:00:11] [%clk 00:00:57]} 54. g3 {[%emt 00:00:02] [%clk
00:01:02]} Rb3 {[%emt 00:00:04] [%clk 00:01:02]} 55. Rxe5 {[%emt 00:00:09] [%clk
00:01:03]} Re3 {[%emt 00:00:01] [%clk 00:01:11]} 56. Re7 {[%emt 00:00:35] [%clk
00:00:37]} Rb3 {[%emt 00:00:25] [%clk 00:00:58]} 57. Re6 {[%emt 00:00:33] [%clk
00:00:14]} Re3 {[%emt 00:00:04] [%clk 00:01:03]} 58. Re7 {[%emt 00:00:02] [%clk
00:00:22]} Rb3 {[%emt 00:00:03] [%clk 00:01:10]} 59. h4 {[%emt 00:00:03] [%clk
00:00:30]} gxh4 {[%emt 00:00:03] [%clk 00:01:17]} 60. Kxh4 {[%emt 00:00:01]
[%clk 00:00:39]} Rf3 {[%emt 00:00:13] [%clk 00:01:13]} 61. Kg4 {[%emt 00:00:06]
[%clk 00:00:44]} Rf1 {[%emt 00:00:04] [%clk 00:01:19]} 62. e5 {[%emt 00:00:21]
[%clk 00:00:33]} Rf5 {[%emt 00:00:27]} 63. e6 {[%clk 00:00:19]} Rf6 {[%emt
00:00:04] [%clk 00:01:31]} 64. Kh4 {[%emt 00:00:11] [%clk 00:00:19]} Rf5 {[%emt
00:00:35] [%clk 00:01:06]} 65. Kg4 {[%emt 00:00:07] [%clk 00:00:23]} Rf6 {[%emt
00:00:01] [%clk 00:01:14]} 66. Kh4 {[%clk 00:00:32]} Rf5 {[%emt 00:00:01] [%clk
00:01:23]} 67. Ra7 {[%emt 00:00:23] [%clk 00:00:19]} Re5 {[%emt 00:00:18] [%clk
00:01:14]} 68. e7 {[%emt 00:00:15] [%clk 00:00:15]} Re4+ {[%emt 00:00:04] [%clk
00:01:18]} 69. g4 {[%emt 00:00:09] [%clk 00:00:17]} g5+ {[%emt 00:00:18] [%clk
00:01:10]} 70. Kg3 {[%emt 00:00:01] [%clk 00:00:26]} Kg6 {[%emt 00:00:02] [%clk
00:01:19]} 71. Kf3 {[%emt 00:00:09] [%clk 00:00:26]} Rf4+ {[%emt 00:00:40] [%clk
00:00:49]} 1/2-1/2

[Site "Europe Echecs"]

[Event "Championnat d'Europe Rapide"]
[Date "2024.12.08"]
[White "Bernadskiy, Vitaliy"]
[Black "Stojanovski, Dejan"]
[WhiteElo "2546"]
[BlackElo "2407"]
[Round "10.7"]
[Result "1/2-1/2"]
[TimeControl "900+10"]

1. Nf3 {[%emt 00:00:04] [%clk 00:15:18]} Nf6 {[%emt 00:00:06] [%clk 00:15:13]}
2. g3 {[%emt 00:00:03] [%clk 00:15:25]} c5 {[%emt 00:00:02] [%clk 00:15:20]} 3.
Bg2 {[%emt 00:00:03] [%clk 00:15:32]} g6 {[%emt 00:00:02] [%clk 00:15:29]} 4. c4
{[%emt 00:00:13] [%clk 00:15:29]} Bg7 {[%emt 00:00:03] [%clk 00:15:36]} 5. Nc3
{[%emt 00:00:05] [%clk 00:15:34]} O-O {[%emt 00:00:02] [%clk 00:15:43]} 6. d4
{[%emt 00:00:11] [%clk 00:15:34]} cxd4 {[%emt 00:00:02] [%clk 00:15:51]} 7. Nxd4
{[%emt 00:00:03] [%clk 00:15:41]} Nc6 {[%emt 00:00:01] [%clk 00:16:00]} 8. O-O
{[%emt 00:00:11] [%clk 00:15:40]} Nxd4 {[%emt 00:00:03] [%clk 00:16:07]} 9. Qxd4
{[%emt 00:00:02] [%clk 00:15:48]} d6 {[%emt 00:00:03] [%clk 00:16:14]} 10. Qd2
{[%emt 00:06:18] [%clk 00:09:40]} Be6 {[%emt 00:00:30] [%clk 00:15:53]} 11. Bxb7
{[%emt 00:01:21] [%clk 00:08:30]} Rb8 {[%emt 00:00:01] [%clk 00:16:02]} 12. Bg2
{[%emt 00:00:39] [%clk 00:08:01]} Bxc4 {[%emt 00:00:29] [%clk 00:15:43]} 13. b3
{[%emt 00:00:02] [%clk 00:08:09]} Be6 {[%emt 00:00:12] [%clk 00:15:40]} 14. Bb2
{[%emt 00:00:02] [%clk 00:08:18]} Qa5 {[%emt 00:00:19] [%clk 00:15:29]} 15. Rfd1
{[%emt 00:00:15] [%clk 00:08:14]} Rfc8 {[%emt 00:00:24] [%clk 00:15:14]} 16.
Rac1 {[%emt 00:01:27]} h5 {[%clk 00:14:19]} 17. h3 {[%emt 00:00:20] [%clk
00:07:53]} Kh7 {[%emt 00:00:11] [%clk 00:14:17]} 18. e3 {[%emt 00:00:14] [%clk
00:07:50]} Rc5 {[%emt 00:01:34] [%clk 00:12:53]} 19. Na4 {[%emt 00:01:18] [%clk
00:06:42]} Qxd2 {[%emt 00:00:16] [%clk 00:12:47]} 20. Rxd2 {[%emt 00:00:02]
[%clk 00:06:50]} Rxc1+ {[%emt 00:00:08] [%clk 00:12:49]} 21. Bxc1 {[%emt
00:00:01] [%clk 00:06:59]} Rc8 {[%emt 00:00:01] [%clk 00:12:58]} 22. Bb2 {[%emt
00:00:02] [%clk 00:07:07]} Nd7 {[%emt 00:00:14] [%clk 00:12:53]} 23. Bxg7 {[%emt
00:00:46] [%clk 00:06:32]} Kxg7 {[%emt 00:00:01] [%clk 00:13:02]} 24. Kh2 {[%emt
00:00:14] [%clk 00:06:29]} Ne5 {[%emt 00:01:48] [%clk 00:11:23]} 25. f4 {[%emt
00:00:40] [%clk 00:05:59]} Nd7 {[%emt 00:00:01] [%clk 00:11:32]} 26. Bf3 {[%emt
00:00:04] [%clk 00:06:05]} Nc5 {[%emt 00:01:02] [%clk 00:10:40]} 27. Nxc5 {[%emt
00:00:29] [%clk 00:05:46]} dxc5 {[%emt 00:00:20] [%clk 00:10:30]} 28. Bb7 {[%emt
00:01:30] [%clk 00:04:26]} Rc7 {[%emt 00:00:25] [%clk 00:10:15]} 29. Ba6 {[%emt
00:00:05] [%clk 00:04:32]} Rc6 {[%emt 00:00:11] [%clk 00:10:13]} 30. Bb5 {[%emt
00:01:15] [%clk 00:03:28]} Rd6 {[%emt 00:00:39] [%clk 00:09:44]} 31. Re2 {[%emt
00:01:03] [%clk 00:02:34]} a6 {[%emt 00:00:06] [%clk 00:09:49]} 32. Ba4 {[%emt
00:00:30] [%clk 00:02:14]} c4 {[%emt 00:00:28] [%clk 00:09:30]} 33. bxc4 {[%emt
00:00:24] [%clk 00:02:00]} Bxc4 {[%emt 00:00:01] [%clk 00:09:38]} 34. Rc2 {[%emt
00:00:02] [%clk 00:02:08]} Be6 {[%emt 00:00:27] [%clk 00:09:22]} 1/2-1/2

[Site "Europe Echecs"]